[Event "Titled Tuesday Blitz November 15 Late 2022"]
[White "Suleymanli, Suleyman"]
[Black "Rasulov, Vugar"]
[WhiteFideId "13416375"]
[BlackFideId "13402390"]
[WhiteElo "2204"]
[BlackElo "2509"]
[Result "0-1"]
[Round "03"]
[TimeControl "180+1"]
[Date "2022.11.15"]
[WhiteClock "0:01:36"]
[BlackClock "0:01:30"]

1. Nf3 {[%clk 0:03:00]}  d5 {[%clk 0:03:00]} 2. d4 {[%clk 0:03:01]}  Nf6 {[%clk 0:03:00]} 3. g3 {[%clk 0:03:01]}  g6 {[%clk 0:02:58]} 4. Bg2 {[%clk 0:03:01]}  Bg7 {[%clk 0:02:59]} 5. O-O {[%clk 0:03:02]}  O-O {[%clk 0:03:00]} 6. c4 {[%clk 0:03:02]}  c6 {[%clk 0:03:00]} 7. cxd5 {[%clk 0:03:02]}  cxd5 {[%clk 0:03:01]} 8. Nc3 {[%clk 0:03:02]}  Ne4 {[%clk 0:03:01]} 9. Nd2 {[%clk 0:03:00]}  Nxc3 {[%clk 0:02:54]} 10. bxc3 {[%clk 0:03:01]}  Nc6 {[%clk 0:02:54]} 11. Qb3 {[%clk 0:02:59]}  e5 {[%clk 0:02:43]} 12. e3 {[%clk 0:02:57]}  Be6 {[%clk 0:02:41]} 13. Qxb7 {[%clk 0:02:52]}  Rc8 {[%clk 0:02:36]} 14. Ba3 {[%clk 0:02:49]}  Re8 {[%clk 0:02:33]} 15. Bc5 {[%clk 0:02:45]}  h5 {[%clk 0:02:29]} 16. Rab1 {[%clk 0:02:33]}  h4 {[%clk 0:02:28]} 17. Nf3 {[%clk 0:02:27]}  h3 {[%clk 0:02:27]} 18. Bh1 {[%clk 0:02:26]}  Bf5 {[%clk 0:02:26]} 19. Rbd1 {[%clk 0:02:22]}  Bg4 {[%clk 0:02:16]} 20. Rb1 {[%clk 0:02:19]}  e4 {[%clk 0:02:02]} 21. Nd2 {[%clk 0:02:17]}  Be2 {[%clk 0:01:58]} 22. Rfe1 {[%clk 0:02:16]}  Bd3 {[%clk 0:01:58]} 23. Rb2 {[%clk 0:02:13]}  Rb8 {[%clk 0:01:57]} 24. Qxc6 {[%clk 0:02:09]}  Rxb2 {[%clk 0:01:56]} 25. Nb3 {[%clk 0:02:06]}  Re6 {[%clk 0:01:55]} 26. Qb7 {[%clk 0:02:05]}  Qf6 {[%clk 0:01:53]} 27. Qb8+ {[%clk 0:02:00]}  Kh7 {[%clk 0:01:53]} 28. Qf4 {[%clk 0:02:01]}  g5 {[%clk 0:01:45]} 29. Qxf6 {[%clk 0:01:53]}  Rxf6 {[%clk 0:01:45]} 30. Nc1 {[%clk 0:01:50]}  Bc4 {[%clk 0:01:43]} 31. Ba3 {[%clk 0:01:47]}  Rc2 {[%clk 0:01:43]} 32. Be7 {[%clk 0:01:38]}  Rfxf2 {[%clk 0:01:42]} 33. Bxg5 {[%clk 0:01:38]}  Rxh2 {[%clk 0:01:33]} 34. Nb3 {[%clk 0:01:36]}  Rhf2 {[%clk 0:01:30]} 0-1


[Site "https://www.chess.com"]

[Event "Titled Tuesday Blitz November 15 Late 2022"]
[White "Timmermans, Mark"]
[Black "Kujawski, Adam"]
[WhiteFideId "1026399"]
[BlackFideId "1100920"]
[WhiteElo "2460"]
[BlackElo "2053"]
[Result "1-0"]
[Round "03"]
[TimeControl "180+1"]
[Date "2022.11.16"]
[WhiteClock "0:02:01"]
[BlackClock "0:00:06"]

1. b4 {[%clk 0:03:00]}  e5 {[%clk 0:02:57]} 2. Bb2 {[%clk 0:02:59]}  Bxb4 {[%clk 0:02:57]} 3. Bxe5 {[%clk 0:02:58]}  Nf6 {[%clk 0:02:57]} 4. Nc3 {[%clk 0:02:57]}  O-O {[%clk 0:02:55]} 5. Bxf6 {[%clk 0:02:57]}  Qxf6 {[%clk 0:02:48]} 6. Nd5 {[%clk 0:02:58]}  Qd6 {[%clk 0:02:46]} 7. c4 {[%clk 0:02:57]}  c6 {[%clk 0:02:29]} 8. Nxb4 {[%clk 0:02:57]}  Qxb4 {[%clk 0:02:29]} 9. e3 {[%clk 0:02:57]}  d5 {[%clk 0:02:20]} 10. cxd5 {[%clk 0:02:58]}  cxd5 {[%clk 0:02:07]} 11. Nf3 {[%clk 0:02:59]}  Nc6 {[%clk 0:02:04]} 12. Rb1 {[%clk 0:02:56]}  Qa5 {[%clk 0:02:02]} 13. Bd3 {[%clk 0:02:56]}  h6 {[%clk 0:01:37]} 14. O-O {[%clk 0:02:52]}  d4 {[%clk 0:01:34]} 15. Be4 {[%clk 0:02:51]}  dxe3 {[%clk 0:01:31]} 16. dxe3 {[%clk 0:02:52]}  Qxa2 {[%clk 0:01:23]} 17. Bxc6 {[%clk 0:02:51]}  bxc6 {[%clk 0:01:23]} 18. Qd6 {[%clk 0:02:52]}  Qd5 {[%clk 0:01:12]} 19. Rfd1 {[%clk 0:02:50]}  Qxd6 {[%clk 0:01:02]} 20. Rxd6 {[%clk 0:02:51]}  Bf5 {[%clk 0:01:02]} 21. Rc1 {[%clk 0:02:46]}  a5 {[%clk 0:00:56]} 22. Nd4 {[%clk 0:02:45]}  Bg6 {[%clk 0:00:22]} 23. Nxc6 {[%clk 0:02:41]}  a4 {[%clk 0:00:22]} 24. f4 {[%clk 0:02:33]}  a3 {[%clk 0:00:21]} 25. f5 {[%clk 0:02:32]}  Bh5 {[%clk 0:00:20]} 26. Ra1 {[%clk 0:02:29]}  Kh7 {[%clk 0:00:15]} 27. Rd3 {[%clk 0:02:27]}  Rfc8 {[%clk 0:00:13]} 28. Nd4 {[%clk 0:02:23]}  a2 {[%clk 0:00:12]} 29. Rd2 {[%clk 0:02:22]}  Ra3 {[%clk 0:00:08]} 30. Kf2 {[%clk 0:02:15]}  Re8 {[%clk 0:00:08]} 31. h3 {[%clk 0:02:13]}  f6 {[%clk 0:00:07]} 32. Raxa2 {[%clk 0:02:01]}  Raxe3 {[%clk 0:00:07]} 33. Ne6 {[%clk 0:02:02]}  Bf7 {[%clk 0:00:06]} 34. Kxe3 {[%clk 0:02:01]} 1-0


[Site "https://www.chess.com"]

[Event "Titled Tuesday Blitz November 15 Late 2022"]
[White "Tomiello, Lucas Costamilan"]
[Black "Yoo, Christopher Woojin"]
[WhiteFideId "22701940"]
[BlackFideId "30909694"]
[WhiteElo "2660"]
[BlackElo "3013"]
[Result "1-0"]
[Round "03"]
[TimeControl "180+1"]
[Date "2022.11.16"]
[WhiteClock "0:00:09"]
[BlackClock "0:00:04"]

1. e4 {[%clk 0:03:00]}  g6 {[%clk 0:02:54]} 2. d4 {[%clk 0:03:01]}  Bg7 {[%clk 0:02:55]} 3. Nc3 {[%clk 0:03:00]}  c6 {[%clk 0:02:55]} 4. Nf3 {[%clk 0:02:57]}  d5 {[%clk 0:02:55]} 5. exd5 {[%clk 0:02:58]}  cxd5 {[%clk 0:02:55]} 6. h3 {[%clk 0:02:51]}  Nf6 {[%clk 0:02:54]} 7. Bd3 {[%clk 0:02:49]}  Nc6 {[%clk 0:02:53]} 8. O-O {[%clk 0:02:49]}  O-O {[%clk 0:02:53]} 9. Re1 {[%clk 0:02:49]}  Nb4 {[%clk 0:02:49]} 10. Bf1 {[%clk 0:02:34]}  Bf5 {[%clk 0:02:49]} 11. Re2 {[%clk 0:02:34]}  Rc8 {[%clk 0:02:46]} 12. a3 {[%clk 0:02:34]}  Nc6 {[%clk 0:02:46]} 13. Ne5 {[%clk 0:02:25]}  Ne4 {[%clk 0:02:31]} 14. Nxc6 {[%clk 0:02:15]}  Rxc6 {[%clk 0:02:28]} 15. Nxe4 {[%clk 0:02:13]}  Bxe4 {[%clk 0:02:29]} 16. c3 {[%clk 0:02:11]}  Qc7 {[%clk 0:02:04]} 17. Bg5 {[%clk 0:01:52]}  h6 {[%clk 0:01:55]} 18. Bh4 {[%clk 0:01:52]}  Re8 {[%clk 0:01:46]} 19. Qd2 {[%clk 0:01:41]}  g5 {[%clk 0:01:24]} 20. Bg3 {[%clk 0:01:40]}  Qd7 {[%clk 0:01:25]} 21. Rae1 {[%clk 0:01:36]}  Rb6 {[%clk 0:01:15]} 22. f3 {[%clk 0:01:32]}  Bg6 {[%clk 0:01:14]} 23. Kh2 {[%clk 0:01:03]}  a5 {[%clk 0:00:36]} 24. Re3 {[%clk 0:00:47]}  h5 {[%clk 0:00:32]} 25. Bd3 {[%clk 0:00:37]}  h4 {[%clk 0:00:30]} 26. Bf2 {[%clk 0:00:32]}  Bxd3 {[%clk 0:00:27]} 27. Rxd3 {[%clk 0:00:33]}  Qf5 {[%clk 0:00:26]} 28. Rde3 {[%clk 0:00:26]}  e6 {[%clk 0:00:26]} 29. Kg1 {[%clk 0:00:26]}  a4 {[%clk 0:00:24]} 30. Kf1 {[%clk 0:00:23]}  Kh7 {[%clk 0:00:22]} 31. Bg1 {[%clk 0:00:23]}  Qf4 {[%clk 0:00:11]} 32. R3e2 {[%clk 0:00:20]}  Qxd2 {[%clk 0:00:11]} 33. Rxd2 {[%clk 0:00:21]}  Kg6 {[%clk 0:00:11]} 34. Bh2 {[%clk 0:00:21]}  Rc6 {[%clk 0:00:10]} 35. Be5 {[%clk 0:00:19]}  Bf8 {[%clk 0:00:08]} 36. Kf2 {[%clk 0:00:18]}  f6 {[%clk 0:00:08]} 37. Bh2 {[%clk 0:00:18]}  Kf5 {[%clk 0:00:08]} 38. Ree2 {[%clk 0:00:14]}  b5 {[%clk 0:00:08]} 39. Re3 {[%clk 0:00:14]}  Rc4 {[%clk 0:00:05]} 40. Rde2 {[%clk 0:00:15]}  Rc6 {[%clk 0:00:05]} 41. Re1 {[%clk 0:00:14]}  Bd6 {[%clk 0:00:06]} 42. Bxd6 {[%clk 0:00:14]}  Rxd6 {[%clk 0:00:06]} 43. R1e2 {[%clk 0:00:14]}  e5 {[%clk 0:00:06]} 44. Re1 {[%clk 0:00:12]}  e4 {[%clk 0:00:06]} 45. fxe4+ {[%clk 0:00:12]}  dxe4 {[%clk 0:00:07]} 46. Ke2 {[%clk 0:00:12]}  Kg6 {[%clk 0:00:06]} 47. Kd2 {[%clk 0:00:11]}  f5 {[%clk 0:00:07]} 48. Kc2 {[%clk 0:00:11]}  Rde6 {[%clk 0:00:07]} 49. b3 {[%clk 0:00:08]}  f4 {[%clk 0:00:06]} 50. R3e2 {[%clk 0:00:09]}  axb3+ {[%clk 0:00:06]} 51. Kxb3 {[%clk 0:00:10]}  e3 {[%clk 0:00:06]} 52. c4 {[%clk 0:00:09]}  bxc4+ {[%clk 0:00:06]} 53. Kxc4 {[%clk 0:00:10]}  Ra6 {[%clk 0:00:06]} 54. Ra2 {[%clk 0:00:09]}  Rea8 {[%clk 0:00:06]} 55. d5 {[%clk 0:00:08]}  Kf5 {[%clk 0:00:04]} 56. Kd4 {[%clk 0:00:08]}  Rxa3 {[%clk 0:00:03]} 57. Rxa3 {[%clk 0:00:09]}  Ra4+ {[%clk 0:00:04]} 58. Rxa4 {[%clk 0:00:09]} 1-0


[Site "https://www.chess.com"]

[Event "Titled Tuesday Blitz November 15 Late 2022"]
[White "Toncheva, Nadya"]
[Black "Zhou, Qiyu"]
[WhiteFideId "2924056"]
[BlackFideId "505161"]
[WhiteElo "2101"]
[BlackElo "2101"]
[Result "1/2-1/2"]
[Round "03"]
[TimeControl "180+1"]
[Date "2022.11.16"]
[WhiteClock "0:00:05"]
[BlackClock "0:00:15"]

1. d4 {[%clk 0:03:00]}  g6 {[%clk 0:02:54]} 2. c4 {[%clk 0:02:59]}  d6 {[%clk 0:02:50]} 3. Nc3 {[%clk 0:02:59]}  Bg7 {[%clk 0:02:48]} 4. e4 {[%clk 0:02:59]}  e6 {[%clk 0:02:48]} 5. Be3 {[%clk 0:02:53]}  b6 {[%clk 0:02:48]} 6. Bd3 {[%clk 0:02:49]}  Bb7 {[%clk 0:02:48]} 7. Nge2 {[%clk 0:02:50]}  Ne7 {[%clk 0:02:48]} 8. f3 {[%clk 0:02:49]}  O-O {[%clk 0:02:48]} 9. Qd2 {[%clk 0:02:46]}  Nd7 {[%clk 0:02:48]} 10. h4 {[%clk 0:02:45]}  f5 {[%clk 0:02:35]} 11. h5 {[%clk 0:02:41]}  e5 {[%clk 0:02:28]} 12. O-O-O {[%clk 0:02:27]}  f4 {[%clk 0:02:26]} 13. Bf2 {[%clk 0:02:26]}  g5 {[%clk 0:02:21]} 14. h6 {[%clk 0:02:18]}  Bf6 {[%clk 0:02:18]} 15. d5 {[%clk 0:02:14]}  Nc5 {[%clk 0:02:15]} 16. Bc2 {[%clk 0:02:14]}  a5 {[%clk 0:02:14]} 17. g3 {[%clk 0:02:00]}  Ng6 {[%clk 0:02:08]} 18. Kb1 {[%clk 0:01:48]}  Ba6 {[%clk 0:02:05]} 19. b3 {[%clk 0:01:43]}  Nd7 {[%clk 0:01:54]} 20. gxf4 {[%clk 0:01:40]}  gxf4 {[%clk 0:01:49]} 21. Rdg1 {[%clk 0:01:39]}  Kf7 {[%clk 0:01:48]} 22. Nc1 {[%clk 0:01:30]}  Rg8 {[%clk 0:01:44]} 23. Nd3 {[%clk 0:01:26]}  Qb8 {[%clk 0:01:38]} 24. Be1 {[%clk 0:01:24]}  b5 {[%clk 0:01:34]} 25. cxb5 {[%clk 0:01:21]}  Bxb5 {[%clk 0:01:35]} 26. Nxb5 {[%clk 0:01:15]}  Qxb5 {[%clk 0:01:36]} 27. a4 {[%clk 0:00:57]}  Qb7 {[%clk 0:01:31]} 28. Qc3 {[%clk 0:00:45]}  Rgc8 {[%clk 0:01:19]} 29. Qc4 {[%clk 0:00:22]}  Nb6 {[%clk 0:01:15]} 30. Qc6 {[%clk 0:00:22]}  Rcb8 {[%clk 0:01:07]} 31. Ka2 {[%clk 0:00:19]}  Qxc6 {[%clk 0:01:02]} 32. dxc6 {[%clk 0:00:19]}  d5 {[%clk 0:01:02]} 33. Nc5 {[%clk 0:00:14]}  Be7 {[%clk 0:00:56]} 34. Bf2 {[%clk 0:00:13]}  d4 {[%clk 0:00:55]} 35. Nd3 {[%clk 0:00:11]}  Bf6 {[%clk 0:00:53]} 36. Rh5 {[%clk 0:00:10]}  Re8 {[%clk 0:00:52]} 37. Be1 {[%clk 0:00:10]}  Re6 {[%clk 0:00:50]} 38. Rf5 {[%clk 0:00:09]}  Rxc6 {[%clk 0:00:49]} 39. Kb1 {[%clk 0:00:09]}  Nd7 {[%clk 0:00:47]} 40. Nb2 {[%clk 0:00:05]}  Rc5 {[%clk 0:00:29]} 41. Nc4 {[%clk 0:00:04]}  Rb8 {[%clk 0:00:29]} 42. Ka2 {[%clk 0:00:04]}  Ra8 {[%clk 0:00:23]} 43. Bd3 {[%clk 0:00:05]}  Ke6 {[%clk 0:00:21]} 44. Nb2 {[%clk 0:00:05]}  Nb6 {[%clk 0:00:18]} 45. Bc4+ {[%clk 0:00:05]}  Nxc4 {[%clk 0:00:18]} 46. Nxc4 {[%clk 0:00:06]}  Ke7 {[%clk 0:00:15]} 47. Bd2 {[%clk 0:00:05]}  Ke6 {[%clk 0:00:15]} 48. Rh5 {[%clk 0:00:04]}  Ke7 {[%clk 0:00:14]} 49. Rf5 {[%clk 0:00:05]}  Ke6 {[%clk 0:00:14]} 50. Rh5 {[%clk 0:00:05]}  Kf7 {[%clk 0:00:15]} 51. Rf5 {[%clk 0:00:05]}  Ke6 {[%clk 0:00:15]} 1/2-1/2


[Site "https://www.chess.com"]

[Event "Titled Tuesday Blitz November 15 Late 2022"]
[White "Vega Gutierrez, Sabrina"]
[Black "Mgeladze, Tamaz"]
[WhiteFideId "2219026"]
[BlackFideId "13601202"]
[WhiteElo "2261"]
[BlackElo "2288"]
[Result "0-1"]
[Round "03"]
[TimeControl "180+1"]
[Date "2022.11.16"]
[WhiteClock "0:00:01"]
[BlackClock "0:00:26"]

1. d4 {[%clk 0:03:00]}  Nf6 {[%clk 0:02:58]} 2. Nf3 {[%clk 0:03:00]}  g6 {[%clk 0:02:58]} 3. c4 {[%clk 0:02:59]}  Bg7 {[%clk 0:02:59]} 4. g3 {[%clk 0:02:56]}  O-O {[%clk 0:03:00]} 5. Bg2 {[%clk 0:02:53]}  d6 {[%clk 0:03:01]} 6. O-O {[%clk 0:02:48]}  Nc6 {[%clk 0:03:00]} 7. Nc3 {[%clk 0:02:48]}  Rb8 {[%clk 0:03:00]} 8. h3 {[%clk 0:02:46]}  a6 {[%clk 0:03:00]} 9. e4 {[%clk 0:02:41]}  Na5 {[%clk 0:02:58]} 10. Qe2 {[%clk 0:02:39]}  c5 {[%clk 0:02:58]} 11. Rd1 {[%clk 0:02:37]}  cxd4 {[%clk 0:02:55]} 12. Nxd4 {[%clk 0:02:37]}  Qc7 {[%clk 0:02:53]} 13. b3 {[%clk 0:02:33]}  Bd7 {[%clk 0:02:50]} 14. Bg5 {[%clk 0:02:28]}  b5 {[%clk 0:02:23]} 15. Rac1 {[%clk 0:02:18]}  bxc4 {[%clk 0:02:22]} 16. Bxf6 {[%clk 0:02:14]}  Bxf6 {[%clk 0:02:23]} 17. Nd5 {[%clk 0:02:15]}  Qa7 {[%clk 0:02:11]} 18. Nxf6+ {[%clk 0:02:12]}  exf6 {[%clk 0:02:12]} 19. bxc4 {[%clk 0:02:12]}  Rfc8 {[%clk 0:02:08]} 20. Bf1 {[%clk 0:01:25]}  Kg7 {[%clk 0:02:03]} 21. Qe3 {[%clk 0:01:21]}  Qc5 {[%clk 0:02:01]} 22. Rc2 {[%clk 0:00:51]}  Nc6 {[%clk 0:02:00]} 23. Nb3 {[%clk 0:00:44]}  Qxe3 {[%clk 0:01:59]} 24. fxe3 {[%clk 0:00:45]}  Ne5 {[%clk 0:01:54]} 25. Rxd6 {[%clk 0:00:43]}  Ba4 {[%clk 0:01:52]} 26. Rxa6 {[%clk 0:00:40]}  Bxb3 {[%clk 0:01:52]} 27. axb3 {[%clk 0:00:41]}  Rxb3 {[%clk 0:01:52]} 28. Kf2 {[%clk 0:00:40]}  Rc5 {[%clk 0:01:45]} 29. Rd6 {[%clk 0:00:35]}  h5 {[%clk 0:01:44]} 30. Rd5 {[%clk 0:00:35]}  Rc7 {[%clk 0:01:29]} 31. c5 {[%clk 0:00:32]}  Rb4 {[%clk 0:01:30]} 32. Rd4 {[%clk 0:00:29]}  Rb1 {[%clk 0:01:29]} 33. Rd6 {[%clk 0:00:21]}  Ra1 {[%clk 0:01:24]} 34. c6 {[%clk 0:00:18]}  Rb1 {[%clk 0:01:21]} 35. Ba6 {[%clk 0:00:12]}  Rb6 {[%clk 0:01:19]} 36. Be2 {[%clk 0:00:11]}  Rcxc6 {[%clk 0:01:16]} 37. Rcxc6 {[%clk 0:00:10]}  Rxc6 {[%clk 0:01:16]} 38. Rxc6 {[%clk 0:00:11]}  Nxc6 {[%clk 0:01:17]} 39. g4 {[%clk 0:00:08]}  h4 {[%clk 0:01:15]} 40. Bc4 {[%clk 0:00:04]}  Ne5 {[%clk 0:01:15]} 41. Bd5 {[%clk 0:00:05]}  Kf8 {[%clk 0:01:15]} 42. Ke2 {[%clk 0:00:05]}  Ke7 {[%clk 0:01:16]} 43. Kf2 {[%clk 0:00:05]}  Kd6 {[%clk 0:01:16]} 44. Ke2 {[%clk 0:00:06]}  Kc5 {[%clk 0:01:17]} 45. Kf2 {[%clk 0:00:05]}  Kb4 {[%clk 0:01:16]} 46. Ke2 {[%clk 0:00:05]}  Kc3 {[%clk 0:01:17]} 47. Ba8 {[%clk 0:00:05]}  g5 {[%clk 0:01:15]} 48. Bd5 {[%clk 0:00:06]}  Kc2 {[%clk 0:01:15]} 49. Ba8 {[%clk 0:00:04]}  Kc3 {[%clk 0:01:08]} 50. Bd5 {[%clk 0:00:05]}  Kb4 {[%clk 0:01:08]} 51. Ba2 {[%clk 0:00:04]}  Ka3 {[%clk 0:01:07]} 52. Bd5 {[%clk 0:00:05]}  Kb2 {[%clk 0:01:08]} 53. Ba8 {[%clk 0:00:04]}  Kc2 {[%clk 0:01:08]} 54. Bd5 {[%clk 0:00:05]}  Kc1 {[%clk 0:01:08]} 55. Ba2 {[%clk 0:00:05]}  Kb2 {[%clk 0:01:04]} 56. Bd5 {[%clk 0:00:06]}  Kc3 {[%clk 0:01:04]} 57. Ba2 {[%clk 0:00:07]}  Nd7 {[%clk 0:01:02]} 58. Bxf7 {[%clk 0:00:07]}  Nc5 {[%clk 0:01:03]} 59. Bd5 {[%clk 0:00:06]}  Kc2 {[%clk 0:01:01]} 60. Bc4 {[%clk 0:00:06]}  Na4 {[%clk 0:01:01]} 61. Bd5 {[%clk 0:00:06]}  Nc3+ {[%clk 0:01:02]} 62. Kf3 {[%clk 0:00:06]}  Kd2 {[%clk 0:01:01]} 63. Bc6 {[%clk 0:00:05]}  Kd3 {[%clk 0:00:58]} 64. Bb7 {[%clk 0:00:05]}  Kd2 {[%clk 0:00:51]} 65. Ba6 {[%clk 0:00:05]}  Nd1 {[%clk 0:00:48]} 66. e5 {[%clk 0:00:04]}  fxe5 {[%clk 0:00:49]} 67. Ke4 {[%clk 0:00:04]}  Nf2+ {[%clk 0:00:46]} 68. Kxe5 {[%clk 0:00:04]}  Nxh3 {[%clk 0:00:47]} 69. Kf5 {[%clk 0:00:05]}  Kxe3 {[%clk 0:00:44]} 70. Bf1 {[%clk 0:00:05]}  Ng1 {[%clk 0:00:33]} 71. Kxg5 {[%clk 0:00:05]}  Nf3+ {[%clk 0:00:33]} 72. Kh5 {[%clk 0:00:03]}  Kf2 {[%clk 0:00:34]} 73. Bh3 {[%clk 0:00:03]}  Kg3 {[%clk 0:00:34]} 74. g5 {[%clk 0:00:02]}  Nxg5 {[%clk 0:00:29]} 75. Bc8 {[%clk 0:00:03]}  Nf7 {[%clk 0:00:27]} 76. Be6 {[%clk 0:00:02]}  Ne5 {[%clk 0:00:28]} 77. Kg5 {[%clk 0:00:02]}  Nd3 {[%clk 0:00:28]} 78. Bd7 {[%clk 0:00:01]}  Nf4 {[%clk 0:00:28]} 79. Bf5 {[%clk 0:00:01]}  Nh3+ {[%clk 0:00:26]} 0-1


[Site "https://www.chess.com"]

[Event "Titled Tuesday Blitz November 15 Late 2022"]
[White "Vinuela Diaz, Saul"]
[Black "Torres Dominguez, David"]
[WhiteFideId "2239639"]
[BlackFideId "2220857"]
[WhiteElo "2204"]
[BlackElo "2037"]
[Result "1-0"]
[Round "03"]
[TimeControl "180+1"]
[Date "2022.11.16"]
[WhiteClock "0:00:09"]
[BlackClock "0:00:01"]

1. d4 {[%clk 0:02:59]}  Nf6 {[%clk 0:02:57]} 2. Bf4 {[%clk 0:02:59]}  d5 {[%clk 0:02:55]} 3. e3 {[%clk 0:03:00]}  e6 {[%clk 0:02:53]} 4. Nd2 {[%clk 0:03:00]}  Bd6 {[%clk 0:02:48]} 5. Ngf3 {[%clk 0:03:00]}  c5 {[%clk 0:02:41]} 6. c3 {[%clk 0:02:57]}  Qc7 {[%clk 0:02:39]} 7. Bg3 {[%clk 0:02:55]}  Nbd7 {[%clk 0:02:36]} 8. Bd3 {[%clk 0:02:48]}  O-O {[%clk 0:02:35]} 9. O-O {[%clk 0:02:46]}  Bxg3 {[%clk 0:02:33]} 10. hxg3 {[%clk 0:02:13]}  e5 {[%clk 0:02:33]} 11. dxe5 {[%clk 0:02:13]}  Nxe5 {[%clk 0:02:32]} 12. Nxe5 {[%clk 0:02:14]}  Qxe5 {[%clk 0:02:32]} 13. Qf3 {[%clk 0:02:15]}  Bg4 {[%clk 0:02:25]} 14. Qf4 {[%clk 0:02:14]}  Rfe8 {[%clk 0:02:19]} 15. Nf3 {[%clk 0:02:07]}  Qxf4 {[%clk 0:02:14]} 16. gxf4 {[%clk 0:02:05]}  Rad8 {[%clk 0:02:11]} 17. Ne5 {[%clk 0:02:04]}  Bc8 {[%clk 0:02:06]} 18. Rad1 {[%clk 0:01:54]}  g6 {[%clk 0:02:03]} 19. Bc2 {[%clk 0:01:54]}  Kg7 {[%clk 0:02:00]} 20. Ba4 {[%clk 0:01:53]}  Re6 {[%clk 0:01:54]} 21. Rd2 {[%clk 0:01:51]}  a6 {[%clk 0:01:52]} 22. Rfd1 {[%clk 0:01:50]}  b5 {[%clk 0:01:49]} 23. Bb3 {[%clk 0:01:50]}  c4 {[%clk 0:01:42]} 24. Bc2 {[%clk 0:01:50]}  Bb7 {[%clk 0:01:41]} 25. f3 {[%clk 0:01:46]}  Rde8 {[%clk 0:01:34]} 26. Kf2 {[%clk 0:01:45]}  Nh5 {[%clk 0:01:30]} 27. g4 {[%clk 0:01:42]}  Nf6 {[%clk 0:01:27]} 28. Rh1 {[%clk 0:01:36]}  Ng8 {[%clk 0:01:25]} 29. g5 {[%clk 0:01:34]}  f6 {[%clk 0:01:23]} 30. gxf6+ {[%clk 0:01:28]}  Nxf6 {[%clk 0:01:21]} 31. Rdd1 {[%clk 0:01:24]}  R8e7 {[%clk 0:01:12]} 32. Rdg1 {[%clk 0:01:06]}  Bc8 {[%clk 0:00:56]} 33. Bxg6 {[%clk 0:00:59]}  Rxe5 {[%clk 0:00:43]} 34. Bc2+ {[%clk 0:00:51]}  Kf7 {[%clk 0:00:35]} 35. fxe5 {[%clk 0:00:51]}  Rxe5 {[%clk 0:00:34]} 36. Bxh7 {[%clk 0:00:51]}  Bf5 {[%clk 0:00:28]} 37. Bxf5 {[%clk 0:00:49]}  Rxf5 {[%clk 0:00:28]} 38. Ke2 {[%clk 0:00:50]}  Re5 {[%clk 0:00:25]} 39. Rh4 {[%clk 0:00:44]}  a5 {[%clk 0:00:22]} 40. Rf4 {[%clk 0:00:40]}  b4 {[%clk 0:00:20]} 41. Kd2 {[%clk 0:00:38]}  bxc3+ {[%clk 0:00:14]} 42. bxc3 {[%clk 0:00:38]}  Re6 {[%clk 0:00:10]} 43. Rg5 {[%clk 0:00:35]}  Rb6 {[%clk 0:00:08]} 44. Kc2 {[%clk 0:00:22]}  Ke6 {[%clk 0:00:06]} 45. Rg6 {[%clk 0:00:19]}  Ke5 {[%clk 0:00:04]} 46. Rg5+ {[%clk 0:00:12]}  Ke6 {[%clk 0:00:03]} 47. Rgf5 {[%clk 0:00:12]}  Ke7 {[%clk 0:00:01]} 48. Re5+ {[%clk 0:00:09]} 1-0


[Site "https://www.chess.com"]

[Event "Titled Tuesday Blitz November 15 Late 2022"]
[White "Wadsworth, Matthew J"]
[Black "Gokerkan, Cem Kaan"]
[WhiteFideId "415804"]
[BlackFideId "6336760"]
[WhiteElo "2615"]
[BlackElo "2835"]
[Result "0-1"]
[Round "03"]
[TimeControl "180+1"]
[Date "2022.11.16"]
[WhiteClock "0:00:03"]
[BlackClock "0:00:12"]

1. c4 {[%clk 0:03:00]}  g6 {[%clk 0:03:00]} 2. g3 {[%clk 0:03:01]}  Bg7 {[%clk 0:03:01]} 3. Bg2 {[%clk 0:03:01]}  Nf6 {[%clk 0:02:59]} 4. Nf3 {[%clk 0:03:00]}  O-O {[%clk 0:03:00]} 5. O-O {[%clk 0:03:00]}  e6 {[%clk 0:02:59]} 6. d4 {[%clk 0:02:54]}  d5 {[%clk 0:03:00]} 7. Nc3 {[%clk 0:02:55]}  c6 {[%clk 0:02:54]} 8. b3 {[%clk 0:02:45]}  Nbd7 {[%clk 0:02:52]} 9. Ba3 {[%clk 0:02:39]}  Re8 {[%clk 0:02:52]} 10. Qc2 {[%clk 0:02:35]}  dxc4 {[%clk 0:02:43]} 11. bxc4 {[%clk 0:02:34]}  e5 {[%clk 0:02:43]} 12. dxe5 {[%clk 0:02:06]}  Ng4 {[%clk 0:02:41]} 13. Rad1 {[%clk 0:01:58]}  Qa5 {[%clk 0:02:41]} 14. Bd6 {[%clk 0:01:36]}  Ndxe5 {[%clk 0:02:40]} 15. Nxe5 {[%clk 0:01:32]}  Nxe5 {[%clk 0:02:41]} 16. Ne4 {[%clk 0:01:25]}  Be6 {[%clk 0:02:23]} 17. Nc5 {[%clk 0:01:20]}  Bxc4 {[%clk 0:01:53]} 18. Nxb7 {[%clk 0:01:14]}  Qxa2 {[%clk 0:01:40]} 19. Qxa2 {[%clk 0:00:57]}  Bxa2 {[%clk 0:01:41]} 20. Na5 {[%clk 0:00:47]}  Rac8 {[%clk 0:01:28]} 21. Rc1 {[%clk 0:00:42]}  Bd5 {[%clk 0:01:20]} 22. e4 {[%clk 0:00:40]}  Be6 {[%clk 0:01:06]} 23. Rfd1 {[%clk 0:00:38]}  Bg4 {[%clk 0:01:02]} 24. Bxe5 {[%clk 0:00:27]}  Rxe5 {[%clk 0:00:59]} 25. f3 {[%clk 0:00:17]}  Bxf3 {[%clk 0:00:47]} 26. Rxc6 {[%clk 0:00:11]}  Bxd1 {[%clk 0:00:22]} 27. Rxc8+ {[%clk 0:00:10]}  Bf8 {[%clk 0:00:23]} 28. Nc6 {[%clk 0:00:10]}  Rb5 {[%clk 0:00:17]} 29. e5 {[%clk 0:00:07]}  Kg7 {[%clk 0:00:15]} 30. Bf1 {[%clk 0:00:06]}  Rc5 {[%clk 0:00:15]} 31. Nxa7 {[%clk 0:00:04]}  Bg4 {[%clk 0:00:11]} 32. Rxc5 {[%clk 0:00:03]}  Bxc5+ {[%clk 0:00:11]} 33. Kg2 {[%clk 0:00:03]}  Bxa7 {[%clk 0:00:12]} 0-1


[Site "https://www.chess.com"]